bitfinex-derivatives/quotes_BTCF0:USTF0_20250913
["timestamp","ask_amount","ask_price","bid_price","bid_amount"]
[1757784413005,0.5670551,115530.0,115520.0,0.1070487]
[1757784415606,0.5670551,115530.0,115520.0,0.00505]
[1757784415808,0.5670551,115530.0,115520.0,0.1070487]
[1757784420214,0.5670551,115530.0,115520.0,0.00505]
[1757784420410,0.66904521,115530.0,115520.0,0.10704011]
[1757784421114,0.5670551,115530.0,115520.0,0.10704011]
[1757784421315,0.66904521,115530.0,115520.0,0.10704011]
[1757784421711,0.66904521,115530.0,115520.0,0.20903022]
[1757784422114,0.64712295,115530.0,115520.0,0.20903022]
[1757784422316,0.66996162,115530.0,115520.0,0.20903022]
[1757784422515,0.66996162,115530.0,115520.0,0.10704011]
[1757784423015,0.65444485,115530.0,115520.0,0.10704011]
[1757784423910,0.55245474,115530.0,115520.0,0.20903022]
[1757784425617,0.65444485,115530.0,115520.0,0.20903022]
[1757784426717,0.65444485,115530.0,115520.0,0.10704011]
[1757784426918,0.65444485,115530.0,115520.0,0.20903022]
[1757784428321,0.55245474,115530.0,115520.0,0.20903022]
[1757784428624,0.65444485,115530.0,115520.0,0.20903022]
[1757784431926,0.55245474,115530.0,115520.0,0.20903022]
[1757784432121,0.65444485,115530.0,115520.0,0.20903022]
[1757784432814,0.55245474,115530.0,115520.0,0.20903022]
[1757784434925,0.536877,115530.0,115520.0,0.20903022]
[1757784438130,0.536877,115530.0,115520.0,0.00505]
[1757784438330,0.536877,115530.0,115520.0,0.20903022]
[1757784439030,0.58360693,115530.0,115520.0,0.20903022]
[1757784439629,0.58360693,115530.0,115520.0,0.00505]
[1757784439824,0.58360693,115530.0,115520.0,0.20903022]
[1757784442030,0.58360693,115530.0,115520.0,0.00505]
[1757784442231,0.536877,115530.0,115520.0,0.20903022]
[1757784442630,0.536877,115530.0,115520.0,0.00505]
[1757784442826,0.536877,115530.0,115520.0,0.20903022]
[1757784443027,0.58360693,115530.0,115520.0,0.20903022]
[1757784443331,0.536877,115530.0,115520.0,0.00505]
[1757784443531,0.58360693,115530.0,115520.0,0.20903022]
[1757784443929,0.58360693,115530.0,115520.0,0.00505]
[1757784444230,0.58360693,115530.0,115520.0,0.20903022]
[1757784444430,0.536877,115530.0,115520.0,0.20903022]
[1757784445133,0.58360693,115530.0,115520.0,0.20903022]
[1757784445730,0.58360693,115530.0,115520.0,1.00827022]
[1757784448437,0.58360693,115530.0,115520.0,0.80429]
[1757784448734,0.58360693,115530.0,115520.0,1.00827022]
[1757784449122,0.536877,115530.0,115520.0,1.00827022]
[1757784449526,0.176077,115530.0,115520.0,1.00827022]
[1757784450135,0.22280693,115530.0,115520.0,1.00827022]
[1757784451228,0.22280693,115530.0,115520.0,0.80429]
[1757784451430,0.176077,115530.0,115520.0,1.00827022]
[1757784451935,0.15323833,115530.0,115520.0,1.00827022]
[1757784452231,0.17606656,115530.0,115520.0,1.00827022]
[1757784453730,0.17606656,115530.0,115520.0,0.80429]
[1757784454140,0.17606656,115530.0,115520.0,1.00827022]
[1757784455043,0.17606656,115530.0,115520.0,1.00799022]
[1757784455234,0.17606656,115530.0,115520.0,0.80401]
[1757784455542,0.17606656,115530.0,115520.0,0.80393]
[1757784455734,0.17606656,115530.0,115520.0,1.00791022]
[1757784455937,0.17574279,115530.0,115520.0,0.20903022]
[1757784456135,0.17574279,115530.0,115520.0,1.00787022]
[1757784457039,0.17574279,115530.0,115520.0,0.80389]
[1757784457234,0.17574279,115530.0,115520.0,1.00787022]
[1757784458144,0.2777329,115530.0,115520.0,1.00787022]
[1757784458440,0.17574279,115530.0,115520.0,1.00787022]
[1757784461043,0.17574279,115530.0,115520.0,0.80389]
[1757784461247,0.17574279,115530.0,115520.0,1.00787022]
[1757784462046,0.22247272,115530.0,115520.0,1.00787022]
[1757784462844,0.1445906,115530.0,115520.0,1.00787022]
[1757784463944,0.1445906,115530.0,115520.0,0.80389]
[1757784464134,0.1445906,115530.0,115520.0,1.00787022]
[1757784464333,0.1445906,115530.0,115520.0,0.001]
[1757784464547,0.1445906,115530.0,115520.0,0.90163011]
[1757784464742,0.24658071,115530.0,115520.0,0.90163011]
[1757784464943,0.24658071,115530.0,115520.0,0.90568011]
[1757784465144,0.1445906,115530.0,115520.0,0.90568011]
[1757784465344,0.24658071,115530.0,115520.0,0.90568011]
[1757784465547,0.30882741,115530.0,115520.0,0.90568011]
[1757784466344,0.66962741,115530.0,115520.0,0.90568011]
[1757784466944,0.60738071,115530.0,115520.0,0.90568011]
[1757784467448,0.5053906,115530.0,115520.0,0.90568011]
[1757784467647,0.60738071,115530.0,115520.0,1.00767022]
[1757784467948,0.60738071,115530.0,115520.0,0.90568011]
[1757784468148,0.60738071,115530.0,115520.0,1.00767022]
[1757784469044,0.5053906,115530.0,115520.0,1.00767022]
[1757784469349,0.60738071,115530.0,115520.0,1.00767022]
[1757784470036,0.60738071,115530.0,115520.0,0.80369]
[1757784470239,0.60738071,115530.0,115520.0,1.00767022]
[1757784472753,0.5053906,115530.0,115520.0,1.00767022]
[1757784472943,0.65410957,115530.0,115520.0,1.00767022]
[1757784474848,0.65410957,115530.0,115520.0,0.80369]
[1757784475043,0.55211946,115530.0,115520.0,1.00767022]
[1757784482357,0.55211946,115530.0,115520.0,0.90567029]
[1757784493061,0.5832716,115530.0,115520.0,0.90567029]
[1757784501976,0.5832716,115530.0,115520.0,0.10703029]
[1757784502277,0.5832716,115530.0,115520.0,0.90455029]
[1757784502981,0.5676373,115530.0,115520.0,0.90455029]
[1757784503374,0.5676373,115530.0,115520.0,0.80257]
[1757784503671,0.95935118,115530.0,115520.0,0.001]
[1757784503869,0.85737089,115530.0,115520.0,0.001]
[1757784504276,0.91964874,115530.0,115520.0,0.001]
[1757784504475,0.85737089,115530.0,115520.0,0.001]
[1757784505575,0.81765897,115530.0,115520.0,0.001]
[1757784505884,0.91963926,115530.0,115520.0,0.001]
[1757784506374,0.91963926,115530.0,115520.0,0.00505]
[1757784506889,0.81765897,115530.0,115520.0,0.00505]
[1757784507084,0.80208922,115530.0,115520.0,0.00505]
[1757784508687,0.80208922,115530.0,115520.0,0.001]
[1757784510688,0.80208922,115530.0,115520.0,0.00505]
[1757784512893,0.78651868,115530.0,115520.0,0.001]
[1757784513083,0.88849897,115530.0,115520.0,0.001]
[1757784514384,0.90406951,115530.0,115520.0,0.001]
[1757784515890,1.0060498,115530.0,115520.0,0.001]
[1757784516189,0.03493,115510.0,115500.0,0.36148]
[1757784516393,0.08888032,115510.0,115500.0,0.46346029]
[1757784517193,0.08888032,115510.0,115500.0,0.36148]
[1757784517494,0.08888032,115510.0,115500.0,0.252]
[1757784517688,0.59834374,115510.0,115500.0,0.252]
[1757784518295,0.55166061,115510.0,115500.0,0.252]
[1757784518592,0.49636345,115510.0,115500.0,0.255]
[1757784519292,0.49636345,115510.0,115500.0,0.005]
[1757784520091,0.84834374,115510.0,115500.0,0.005]
[1757784520292,1.61434165,115510.0,115490.0,0.01987327]
[1757784520491,0.57548047,115500.0,115490.0,0.01987327]
[1757784520693,0.5983087,115500.0,115490.0,0.01987327]
[1757784520888,0.5983087,115500.0,115470.0,0.46278029]
[1757784520889,0.01354,115480.0,115470.0,0.46278029]
[1757784521094,0.0755209,115480.0,115470.0,0.38129369]
[1757784521292,0.17750119,115480.0,115470.0,0.38129369]
[1757784521689,0.53671713,115480.0,115470.0,0.02049369]
[1757784522293,0.50563154,115480.0,115470.0,0.02049369]
[1757784522493,0.50563154,115480.0,115470.0,0.02449369]
[1757784522993,0.50563154,115480.0,115470.0,0.005]
[1757784523796,0.50563154,115480.0,115470.0,0.003]
[1757784523991,0.51410336,115480.0,115470.0,0.004]
[1757784524692,0.51410336,115480.0,115470.0,0.002]
[1757784525390,0.61608365,115480.0,115470.0,0.002]
[1757784525793,0.51410336,115480.0,115470.0,0.002]
[1757784526897,0.51410336,115480.0,115470.0,0.001]
[1757784528394,0.51410336,115480.0,115460.0,1.28030615]
[1757784528597,0.01354,115470.0,115460.0,1.29030615]
[1757784528798,0.03636823,115470.0,115460.0,1.29030615]
[1757784530387,0.03636823,115470.0,115460.0,1.29130615]
[1757784531898,0.03636823,115470.0,115460.0,1.29230615]
[1757784540204,0.03636823,115470.0,115460.0,1.19032586]
[1757784540405,0.03636823,115470.0,115460.0,1.29230615]
[1757784541116,0.03636823,115470.0,115460.0,1.19032586]
[1757784541308,0.03636823,115470.0,115460.0,1.29230615]
[1757784543406,0.04462559,115470.0,115460.0,1.29230615]
[1757784543912,0.06745382,115470.0,115460.0,1.29230615]
[1757784544405,0.06745382,115470.0,115460.0,1.39448708]
[1757784547409,0.09130872,115470.0,115460.0,1.39448708]
[1757784547710,0.11413695,115470.0,115460.0,1.39448708]
[1757784549413,0.08305136,115470.0,115460.0,1.39448708]
[1757784549816,0.10585136,115470.0,115460.0,1.40773708]
[1757784550012,0.10585136,115470.0,115460.0,1.39773708]
[1757784550215,0.20793197,115470.0,115460.0,1.29561647]
[1757784550713,0.16124884,115470.0,115460.0,1.29561647]
[1757784551218,0.16124884,115470.0,115460.0,1.39769708]
[1757784551715,0.05916823,115470.0,115460.0,1.39769708]
[1757784552413,0.05916823,115470.0,115460.0,1.29561647]
[1757784552615,0.16124884,115470.0,115460.0,1.29561647]
[1757784553015,0.2385002,115470.0,115460.0,1.29561647]
[1757784553216,0.16124884,115470.0,115460.0,1.29561647]
[1757784554416,0.05916823,115470.0,115460.0,1.29561647]
[1757784554617,0.16124884,115470.0,115460.0,1.29561647]
[1757784554817,0.05916823,115470.0,115460.0,1.39769708]
[1757784555816,0.12152167,115470.0,115460.0,1.39769708]
[1757784556412,0.05916823,115470.0,115460.0,1.39769708]
[1757784556918,0.05916823,115470.0,115460.0,0.60105708]
[1757784557118,0.05916823,115470.0,115460.0,1.39753708]
[1757784557420,0.05916823,115470.0,115460.0,0.39689586]
[1757784557620,0.05916823,115470.0,115460.0,1.39753708]
[1757784558317,0.05916823,115470.0,115460.0,1.39749708]
[1757784558820,0.05916823,115470.0,115460.0,0.60105708]
[1757784559310,0.05916823,115470.0,115460.0,1.39745708]
[1757784562223,0.10593324,115470.0,115460.0,1.39745708]
[1757784563623,0.13710978,115470.0,115460.0,1.39745708]
[1757784565224,0.09034477,115470.0,115460.0,1.39745708]
[1757784566124,0.09034477,115470.0,115460.0,1.19329586]
[1757784566327,0.11428155,115470.0,115460.0,1.39745708]
[1757784566528,0.13710978,115470.0,115460.0,1.39745708]
[1757784567416,0.13881807,115470.0,115460.0,1.39745708]
[1757784569426,0.09205306,115470.0,115460.0,1.64745708]
[1757784569921,0.10764153,115470.0,115460.0,1.64745708]
[1757784570319,0.13880786,115470.0,115460.0,1.64745708]
[1757784572928,0.09204285,115470.0,115460.0,1.64745708]
[1757784582049,0.09204285,115470.0,115460.0,1.64681708]
[1757784583647,0.09204285,115470.0,115460.0,0.85105708]
[1757784583847,0.09204285,115470.0,115460.0,1.64681708]
[1757784584046,0.09204285,115470.0,115460.0,0.85105708]
[1757784584248,0.19412346,115470.0,115460.0,1.64677708]
[1757784584448,0.19412346,115470.0,115460.0,1.64673708]
[1757784585842,0.09204285,115470.0,115460.0,1.64673708]
[1757784586144,0.19412346,115470.0,115460.0,1.64673708]
[1757784586648,0.19412346,115470.0,115460.0,1.28593708]
[1757784587245,0.19412346,115470.0,115460.0,0.38817647]
[1757784587450,0.24088847,115470.0,115460.0,1.18377647]
[1757784588952,0.13880786,115470.0,115460.0,1.18377647]
[1757784589145,0.24088847,115470.0,115460.0,1.18377647]
[1757784589345,0.19412346,115470.0,115460.0,1.18377647]
[1757784590044,0.16958694,115470.0,115460.0,1.18377647]
[1757784590245,0.19419098,115470.0,115460.0,1.18377647]
[1757784591653,0.19419098,115470.0,115460.0,1.54457647]
[1757784591852,0.24095599,115470.0,115460.0,0.74897647]
[1757784592151,0.24095599,115470.0,115460.0,1.54445647]
[1757784592655,0.24095599,115470.0,115460.0,0.74897647]
[1757784592955,0.24095599,115470.0,115460.0,1.54441647]
[1757784596057,0.16302465,115470.0,115460.0,1.44233586]
[1757784596258,0.16302465,115470.0,115460.0,1.54429647]
[1757784596557,0.16302465,115470.0,115460.0,1.44221586]
[1757784596760,0.16302465,115470.0,115460.0,1.54429647]
[1757784601463,0.16302465,115470.0,115460.0,1.44221586]
[1757784601669,0.16302465,115470.0,115460.0,1.54429647]
[1757784602254,0.16302465,115470.0,115460.0,1.64637708]
[1757784602564,0.06094404,115470.0,115460.0,1.64637708]
[1757784602761,0.06094404,115470.0,115460.0,1.44221586]
[1757784602961,0.09211037,115470.0,115460.0,1.44221586]
[1757784603264,0.09211037,115470.0,115460.0,1.64637708]
[1757784604061,0.09211037,115470.0,115460.0,1.44221586]
[1757784604566,0.09211037,115470.0,115460.0,1.64637708]
[1757784604765,0.09211037,115470.0,115460.0,0.85105708]
[1757784604961,0.09211037,115470.0,115460.0,1.64613708]
[1757784605865,0.10770905,115470.0,115460.0,1.64613708]
[1757784606369,0.10770905,115470.0,115460.0,1.54404866]
[1757784607663,0.10770905,115470.0,115460.0,0.74896866]
[1757784607869,0.10770905,115470.0,115460.0,1.54392866]
[1757784609061,0.10770905,115470.0,115460.0,1.44185586]
[1757784609266,0.10770905,115470.0,115460.0,1.54392866]
[1757784609962,0.10770905,115470.0,115460.0,0.74896866]
[1757784610162,0.10770905,115470.0,115460.0,1.54388866]
[1757784610870,0.10770905,115470.0,115460.0,1.44181586]
[1757784611171,0.10770905,115470.0,115460.0,1.54388866]
[1757784613069,0.09210309,115470.0,115460.0,1.54388866]
[1757784615873,0.09210309,115470.0,115460.0,0.74896866]
[1757784616072,0.09210309,115470.0,115460.0,1.54372866]
[1757784616271,0.09210309,115470.0,115460.0,0.74896866]
[1757784616470,0.1388681,115470.0,115460.0,1.54368866]
[1757784617067,0.1388681,115470.0,115460.0,0.74896866]
[1757784617370,0.1388681,115470.0,115460.0,1.19161586]
[1757784618877,0.1388681,115470.0,115460.0,1.29368866]
[1757784620373,0.1388681,115470.0,115460.0,0.49896866]
[1757784620570,0.1388681,115470.0,115460.0,1.29360866]
[1757784628785,0.05576309,115470.0,115460.0,1.83360866]
[1757784629285,0.05576309,115470.0,115460.0,2.08360866]
[1757784629484,0.03115905,115470.0,115460.0,2.08360866]
[1757784629684,0.05576309,115470.0,115460.0,2.08360866]
[1757784629883,0.03115905,115470.0,115460.0,2.08360866]
[1757784630082,0.05576309,115470.0,115460.0,2.08360866]
[1757784630281,0.03115905,115470.0,115460.0,2.08360866]
[1757784630484,0.05576309,115470.0,115460.0,2.08360866]
[1757784630690,0.03115905,115470.0,115460.0,2.08360866]
[1757784630981,0.03115905,115470.0,115460.0,1.28896866]
[1757784631189,0.06929309,115470.0,115460.0,2.08336866]
[1757784632986,0.05576309,115470.0,115460.0,2.08336866]
[1757784633188,0.03115905,115470.0,115460.0,2.08292648]
[1757784633387,0.05576309,115470.0,115460.0,2.08292648]
[1757784633588,0.03115905,115470.0,115460.0,2.08292648]
[1757784633982,0.05576309,115470.0,115460.0,2.08292648]
[1757784634183,0.04468905,115470.0,115460.0,1.28852648]
[1757784634382,0.06929309,115470.0,115460.0,2.08284648]
[1757784636692,0.06929309,115470.0,115460.0,2.08289092]
[1757784639293,0.06929309,115470.0,115460.0,1.83289092]
[1757784639888,0.05576309,115470.0,115460.0,1.83289092]
[1757784640593,0.03115905,115470.0,115460.0,1.83289092]
[1757784640779,0.05576309,115470.0,115460.0,1.83289092]
[1757784640977,0.03115905,115470.0,115460.0,1.83289092]
[1757784641182,0.05576309,115470.0,115460.0,1.83289092]
[1757784641679,0.03115905,115470.0,115460.0,1.83289092]
[1757784642193,0.05576309,115470.0,115460.0,1.73081812]
[1757784642387,0.03115905,115470.0,115460.0,1.83289092]
[1757784642588,0.05576309,115470.0,115460.0,1.83289092]
[1757784643086,0.07136905,115470.0,115460.0,1.83289092]
[1757784643298,0.04676501,115470.0,115460.0,1.83289092]
[1757784643591,0.07136905,115470.0,115460.0,1.83289092]
[1757784643786,0.04676501,115470.0,115460.0,1.83289092]
[1757784643988,0.07136905,115470.0,115460.0,1.83289092]
[1757784644184,0.04676501,115470.0,115460.0,1.83289092]
[1757784644383,0.10252315,115470.0,115460.0,1.83289092]
[1757784644695,0.10252315,115470.0,115460.0,1.8332734]
[1757784645195,0.07791911,115470.0,115460.0,1.8332734]
[1757784645397,0.10252315,115470.0,115460.0,1.8332734]
[1757784645596,0.07791911,115470.0,115460.0,1.8332734]
[1757784646097,0.10252315,115470.0,115460.0,1.8332734]
[1757784646295,0.07791911,115470.0,115460.0,1.8332734]
[1757784646489,0.10252315,115470.0,115460.0,1.0389534]
[1757784646689,0.07791911,115470.0,115460.0,1.8329934]
[1757784646885,0.10252315,115470.0,115460.0,1.8329934]
[1757784647092,0.05575814,115470.0,115460.0,2.1850662]
[1757784647300,0.02460404,115470.0,115460.0,2.1850662]
[1757784647595,0.0311541,115480.0,115470.0,0.00353]
[1757784647791,0.0311541,115480.0,115470.0,1.2021256]
[1757784648388,0.02503351,115480.0,115470.0,1.2021256]
[1757784651306,0.02503351,115480.0,115470.0,1.2051256]
[1757784651800,0.02503351,115480.0,115470.0,1.2071256]
[1757784657408,0.0446941,115500.0,115470.0,1.2071256]
[1757784657609,0.0661741,115500.0,115490.0,0.4765228]
[1757784657801,0.0911858,115500.0,115490.0,0.4765228]
[1757784658710,0.15957771,115500.0,115490.0,0.4765228]
[1757784660215,0.15957771,115500.0,115490.0,0.37545]
[1757784660405,0.12842361,115500.0,115490.0,0.4775228]
[1757784660907,0.10341191,115500.0,115490.0,0.4785228]
[1757784661107,0.12841857,115500.0,115490.0,0.4785228]
[1757784662209,0.12841857,115500.0,115490.0,1.2721228]
[1757784662410,0.12841857,115500.0,115490.0,1.17005]
[1757784662921,0.12841857,115500.0,115490.0,0.37645]
[1757784663207,0.26164547,115500.0,115490.0,1.17001]
[1757784663412,0.26164547,115500.0,115490.0,0.37645]
[1757784663713,0.97451827,115500.0,115490.0,0.002]
[1757784664314,0.91921048,115500.0,115490.0,0.002]
[1757784664615,0.91921048,115500.0,115490.0,0.01565]
[1757784665618,0.51164547,115500.0,115490.0,0.01565]
[1757784668206,0.55841048,115500.0,115490.0,0.01565]
[1757784668407,0.6604302,115500.0,115490.0,0.11769626]
[1757784671918,0.6292761,115500.0,115490.0,0.11769626]
[1757784672315,0.42518358,115500.0,115490.0,0.11769626]
[1757784672612,0.6292761,115500.0,115490.0,0.11769626]
[1757784673213,0.42518358,115500.0,115490.0,0.11769626]
[1757784673415,0.6292761,115500.0,115490.0,0.11769626]
[1757784675113,0.07177167,115500.0,115490.0,0.89776406]
[1757784675317,0.18336287,115530.0,115510.0,0.0865228]
[1757784675520,0.01337,115530.0,115520.0,0.10204626]
[1757784675713,0.01337,115530.0,115520.0,1.53773878]
[1757784675913,0.01337,115530.0,115520.0,2.58097878]
[1757784676315,0.01337,115530.0,115520.0,1.78773878]
[1757784676516,0.01437,115530.0,115520.0,2.47893252]
[1757784676916,0.01637,115530.0,115520.0,2.47893252]
[1757784677417,0.01637,115530.0,115520.0,2.22885252]
[1757784677616,0.01437,115530.0,115520.0,2.22985252]
[1757784677920,0.01437,115530.0,115520.0,2.29801796]
[1757784678125,0.01337,115530.0,115520.0,2.29901796]
[1757784678323,0.01337,115530.0,115520.0,2.54901796]
[1757784679421,0.01337,115530.0,115520.0,1.75585796]
[1757784679622,0.01337,115530.0,115520.0,2.54897796]
[1757784681023,0.01337,115530.0,115520.0,2.65102422]
[1757784681219,0.01337,115530.0,115520.0,1.85790422]
[1757784681420,0.01337,115530.0,115520.0,2.65094422]
[1757784682518,0.01337,115530.0,115520.0,2.65086422]
[1757784685624,0.01337,115530.0,115520.0,1.85790422]
[1757784685814,0.01337,115530.0,115520.0,2.65074422]
[1757784686124,0.01337,115530.0,115520.0,1.85790422]
[1757784686326,0.01337,115530.0,115520.0,2.65074422]
[1757784687226,0.01337,115530.0,115520.0,1.85790422]
[1757784687426,0.03741353,115530.0,115520.0,2.65070422]
[1757784693030,0.06854685,115530.0,115520.0,2.65070422]
[1757784696737,0.04450332,115530.0,115520.0,2.65070422]
[1757784697239,0.0685521,115530.0,115520.0,2.65070422]
[1757784698128,0.0685521,115530.0,115520.0,2.40070422]
[1757784698728,0.03741878,115530.0,115520.0,2.40070422]
[1757784699232,0.04450332,115530.0,115520.0,2.40070422]
[1757784699742,0.0685521,115530.0,115520.0,2.40070422]
[1757784701442,0.031032,115540.0,115520.0,2.73721962]
[1757784701641,0.01337,115550.0,115530.0,0.68675024]
[1757784701842,0.01337,115550.0,115540.0,1.45929878]
[1757784702143,0.03597,115540.0,115530.0,0.38061146]
[1757784702344,0.28597,115540.0,115530.0,0.48265772]
[1757784702640,0.28597,115540.0,115530.0,1.27497772]
[1757784702841,0.28597,115540.0,115530.0,1.37702398]
[1757784703438,0.28597,115540.0,115530.0,1.27497772]
[1757784704643,0.28597,115540.0,115530.0,1.37702398]
[1757784704644,0.03597,115540.0,115530.0,1.37702398]
[1757784704846,0.0139,115540.0,115530.0,1.37702398]
[1757784705245,0.0139,115540.0,115530.0,1.57702398]
[1757784706143,0.0139,115540.0,115530.0,2.19702398]
[1757784709547,0.07588279,115580.0,115530.0,2.55876049]
[1757784709847,0.0139,115580.0,115570.0,0.56489252]
[1757784710049,0.0139,115580.0,115570.0,1.35705252]
[1757784710244,0.03597,115580.0,115570.0,1.25500626]
[1757784710450,0.03597,115580.0,115570.0,1.35705252]
[1757784710954,0.03697,115580.0,115570.0,1.35705252]
[1757784711153,0.03797,115580.0,115570.0,1.35705252]
[1757784711646,0.03697,115580.0,115570.0,1.42754212]
[1757784711846,0.28797,115580.0,115570.0,0.10204626]
[1757784712046,0.0366,115570.0,115560.0,0.48332225]
[1757784712242,0.0366,115570.0,115560.0,1.43744851]
[1757784713243,0.0366,115570.0,115560.0,1.37744851]
[1757784713552,0.06006141,115570.0,115560.0,1.79744851]
[1757784714949,0.41210767,115570.0,115560.0,0.80127599]
[1757784715149,0.01366,115550.0,115540.0,2.09249]
[1757784715349,0.03712141,115550.0,115540.0,3.61858252]
[1757784715549,0.03712141,115550.0,115540.0,2.82658252]
[1757784715850,0.03712141,115550.0,115540.0,3.61854252]
[1757784716047,0.03712141,115550.0,115540.0,2.82658252]
[1757784716247,0.03712141,115550.0,115540.0,2.75925252]
[1757784716452,0.28712141,115550.0,115540.0,3.55121252]
[1757784716853,0.28712141,115550.0,115540.0,3.34712]
[1757784717256,0.28712141,115550.0,115540.0,3.55121252]
[1757784718153,0.28712141,115550.0,115540.0,3.55321252]
[1757784718655,0.26366,115550.0,115540.0,3.55321252]
[1757784718855,0.28712204,115550.0,115540.0,3.55321252]
[1757784720152,0.28712204,115550.0,115540.0,3.17321252]
[1757784721460,0.33367869,115550.0,115540.0,3.17321252]
[1757784722954,0.28712204,115550.0,115540.0,3.17321252]
[1757784723857,0.28712204,115550.0,115540.0,2.38125252]
[1757784724058,0.28712204,115550.0,115540.0,3.17317252]
[1757784725060,0.28712204,115550.0,115540.0,1.51081252]
[1757784725360,0.28712204,115550.0,115540.0,1.30672]
[1757784725560,0.28712204,115550.0,115540.0,1.51081252]
[1757784728467,0.28712204,115550.0,115540.0,1.40865297]
[1757784729359,0.29560155,115550.0,115540.0,1.40865297]
[1757784731067,0.29563746,115550.0,115540.0,1.40865297]
[1757784731363,0.31857746,115550.0,115540.0,0.5148]
[1757784731664,0.47804695,115550.0,115540.0,0.7958]
[1757784732067,0.47804695,115550.0,115540.0,0.89773297]
[1757784732263,0.11724695,115550.0,115540.0,0.89773297]
[1757784732968,0.13274326,115550.0,115540.0,0.89773297]
[1757784733467,0.49354326,115550.0,115540.0,0.89773297]
[1757784733867,0.49354326,115550.0,115540.0,0.89673297]
[1757784734873,0.49354326,115550.0,115540.0,0.7948]
[1757784735166,0.49354326,115550.0,115540.0,0.89573297]
[1757784735471,0.52460572,115550.0,115540.0,0.89573297]
[1757784736973,0.82998204,115550.0,115540.0,0.002]
[1757784737174,0.84547623,115550.0,115540.0,0.002]
[1757784737381,0.79891958,115550.0,115540.0,0.002]
[1757784738673,0.69698661,115550.0,115540.0,0.002]
[1757784738867,0.79891958,115550.0,115540.0,0.002]
[1757784739367,0.86090237,115550.0,115540.0,0.002]
[1757784739766,0.79891958,115550.0,115540.0,0.001]
[1757784740773,0.0366,115530.0,115520.0,0.89369297]
[1757784740977,0.06009795,115530.0,115520.0,0.89369297]
[1757784741381,0.09114776,115530.0,115520.0,0.79176]
[1757784741571,0.09114776,115530.0,115520.0,0.89369297]
[1757784741972,0.09114776,115530.0,115520.0,0.89769297]
[1757784742978,0.06009795,115530.0,115520.0,0.89769297]
[1757784743375,0.06009795,115530.0,115520.0,1.25849297]
[1757784746184,0.03715795,115530.0,115520.0,1.50849297]
[1757784746480,0.03715795,115530.0,115520.0,2.06849297]
[1757784752586,0.02349795,115530.0,115520.0,2.17042594]
[1757784752777,0.03126915,115550.0,115520.0,2.17042594]
[1757784752982,0.05478206,115550.0,115540.0,0.46273297]
[1757784753182,0.05478206,115550.0,115540.0,1.25441297]
[1757784753785,0.03717291,115550.0,115540.0,1.25441297]
[1757784754086,0.03717291,115550.0,115540.0,1.27493218]
[1757784754684,0.03717291,115550.0,115540.0,1.38493218]
[1757784755183,0.03717291,115550.0,115540.0,1.38593218]
[1757784755489,0.03717291,115550.0,115540.0,1.27593218]
[1757784755884,0.03717291,115550.0,115540.0,1.27693218]
[1757784757286,0.03717291,115550.0,115540.0,0.48525218]
[1757784757490,0.05987291,115550.0,115540.0,1.27685218]
[1757784758490,0.03717291,115550.0,115540.0,1.27685218]
[1757784758884,0.03717291,115550.0,115540.0,1.17491921]
[1757784759189,0.03717291,115550.0,115540.0,1.27685218]
[1757784759993,0.03717291,115550.0,115540.0,1.17491921]
[1757784760289,0.03717291,115550.0,115540.0,1.27685218]
[1757784761292,0.03717291,115550.0,115540.0,1.17491921]
[1757784761489,0.03717291,115550.0,115540.0,1.27685218]
[1757784769994,0.05987291,115550.0,115540.0,0.48525218]
[1757784770192,0.05987291,115550.0,115540.0,1.27661218]
[1757784771097,0.03717291,115550.0,115540.0,1.27661218]
[1757784771499,0.03717291,115550.0,115540.0,1.82661218]
[1757784773903,0.03717291,115550.0,115540.0,1.83515724]
[1757784775908,0.03717291,115550.0,115540.0,1.83507724]
[1757784776606,0.03717291,115550.0,115540.0,1.82653218]
[1757784777108,0.03717291,115550.0,115540.0,1.82649218]
[1757784777410,0.03717291,115550.0,115540.0,1.03525218]
[1757784777610,0.03717291,115550.0,115540.0,1.82649218]
[1757784780209,0.03717291,115550.0,115540.0,1.03525218]
[1757784780505,0.03717291,115550.0,115540.0,1.82645218]
[1757784780711,0.05931291,115550.0,115540.0,1.49645218]
[1757784781309,0.09036272,115550.0,115540.0,1.49645218]
[1757784783208,0.13693744,115550.0,115540.0,1.49645218]
[1757784786411,0.13693744,115550.0,115540.0,1.49641218]
[1757784790512,0.13693744,115550.0,115540.0,1.88832785]
[1757784790906,0.13693744,115550.0,115540.0,1.68447921]
[1757784791220,0.13693744,115550.0,115540.0,1.88832785]
[1757784791516,0.11479744,115550.0,115540.0,1.88832785]
[1757784792613,0.42278279,115570.0,115540.0,2.13832785]
[1757784792815,0.09889167,115570.0,115560.0,1.11385896]
[1757784793017,0.03690888,115570.0,115560.0,2.39855593]
[1757784793311,0.01332,115570.0,115560.0,1.60743593]
[1757784793521,0.01332,115570.0,115560.0,1.50551161]
[1757784793711,0.01332,115570.0,115560.0,1.30166297]
[1757784794020,0.01432,115570.0,115560.0,2.29663161]
[1757784794220,0.01432,115570.0,115560.0,2.36524397]
[1757784794915,0.01332,115570.0,115560.0,1.57612397]
[1757784795116,0.01432,115570.0,115560.0,2.36720397]
[1757784795613,0.01332,115570.0,115560.0,2.16435533]
[1757784795819,0.01332,115570.0,115560.0,2.36820397]
[1757784796113,0.01332,115570.0,115560.0,1.57712397]
[1757784796319,0.01332,115570.0,115560.0,2.36820397]
[1757784797114,0.01332,115570.0,115560.0,1.57612397]
[1757784797319,0.01332,115570.0,115560.0,2.36716397]
[1757784797720,0.01332,115570.0,115560.0,2.36712397]
[1757784803522,0.01332,115570.0,115560.0,2.36704397]
[1757784808532,0.01332,115570.0,115560.0,2.46896829]
[1757784808728,0.01332,115570.0,115560.0,2.16319533]
[1757784809027,0.01332,115570.0,115560.0,2.36704397]
[1757784809223,0.01332,115570.0,115560.0,2.16319533]
[1757784809431,0.01332,115570.0,115560.0,2.36704397]
[1757784809729,0.01332,115570.0,115560.0,2.36604397]
[1757784809918,0.01332,115570.0,115560.0,2.26611965]
[1757784810118,0.01332,115570.0,115560.0,2.36804397]
[1757784810623,0.01332,115570.0,115560.0,2.16419533]
[1757784810820,0.01332,115570.0,115560.0,2.36804397]
[1757784812028,0.01332,115570.0,115560.0,1.57712397]
[1757784812225,0.01332,115570.0,115560.0,2.37296397]
[1757784815527,0.01332,115570.0,115560.0,2.47488829]
[1757784815728,0.01332,115570.0,115560.0,2.37296397]
[1757784817230,0.01332,115570.0,115560.0,2.47488829]
[1757784818632,0.01332,115570.0,115560.0,2.37296397]
[1757784819032,0.01332,115570.0,115560.0,2.47488829]
[1757784819431,0.03616332,115570.0,115560.0,2.47488829]
[1757784823944,0.03616332,115570.0,115560.0,2.56137519]
[1757784824940,0.03616332,115570.0,115560.0,2.81137519]
[1757784825344,0.01332,115570.0,115560.0,2.81137519]